Workbook

Sheet Sheet1
A1: Table S5. Functional categories of the genes correlated with the anabolism of macraomolecules differentially expressed in senescing leaves compared non-senescing leaves in red maple.
A2: KEGG class | B2: pathway | C2: Total | D2: Up | E2: Down | F2: Gene ID | G2: log2_FC(YL_mean/GL_mean) | H2: Pvalue
A3: Amino acid metabolism | B3: Alanine, aspartate and glutamate metabolism | C3: 128 | D3: 63 | E3: 65 | F3: i1_LQ_AR_c40936/f1p0/1750 | G3: =VLOOKUP(F3,[1]YLvsGL.Differential_analysis_re!$A:$G,4,0) -> 1.845 | H3: =VLOOKUP(F3,[1]YLvsGL.Differential_analysis_re!$A:$G,5,0) -> 0.00040259
F4: i1_LQ_AR_c28564/f2p1/1714 | G4: =VLOOKUP(F4,[1]YLvsGL.Differential_analysis_re!$A:$G,4,0) -> -4.3187 | H4: =VLOOKUP(F4,[1]YLvsGL.Differential_analysis_re!$A:$G,5,0) -> 2.4266e-186
F5: i1_LQ_AR_c39240/f1p2/1899 | G5: =VLOOKUP(F5,[1]YLvsGL.Differential_analysis_re!$A:$G,4,0) -> 1.3383 | H5: =VLOOKUP(F5,[1]YLvsGL.Differential_analysis_re!$A:$G,5,0) -> 2.2942e-07
F6: i6_LQ_AR_c2082/f1p0/6392 | G6: =VLOOKUP(F6,[1]YLvsGL.Differential_analysis_re!$A:$G,4,0) -> -0.94192 | H6: =VLOOKUP(F6,[1]YLvsGL.Differential_analysis_re!$A:$G,5,0) -> 1.0162e-10
F7: i1_HQ_AR_c1762/f4p4/1473 | G7: =VLOOKUP(F7,[1]YLvsGL.Differential_analysis_re!$A:$G,4,0) -> -0.98258 | H7: =VLOOKUP(F7,[1]YLvsGL.Differential_analysis_re!$A:$G,5,0) -> 4.6935e-09
F8: i6_LQ_AR_c3710/f1p0/6843 | G8: =VLOOKUP(F8,[1]YLvsGL.Differential_analysis_re!$A:$G,4,0) -> Inf | H8: =VLOOKUP(F8,[1]YLvsGL.Differential_analysis_re!$A:$G,5,0) -> 6.6402e-07
F9: i2_HQ_AR_c29218/f4p2/2162 | G9: =VLOOKUP(F9,[1]YLvsGL.Differential_analysis_re!$A:$G,4,0) -> -0.99028 | H9: =VLOOKUP(F9,[1]YLvsGL.Differential_analysis_re!$A:$G,5,0) -> 3.6365e-13
F10: i1_LQ_AR_c27903/f1p1/1839 | G10: =VLOOKUP(F10,[1]YLvsGL.Differential_analysis_re!$A:$G,4,0) -> -2.4869 | H10: =VLOOKUP(F10,[1]YLvsGL.Differential_analysis_re!$A:$G,5,0) -> 1.1969e-74
F11: i1_HQ_AR_c28630/f2p2/1768 | G11: =VLOOKUP(F11,[1]YLvsGL.Differential_analysis_re!$A:$G,4,0) -> 1.4309 | H11: =VLOOKUP(F11,[1]YLvsGL.Differential_analysis_re!$A:$G,5,0) -> 6.1469e-09
F12: i3_LQ_AR_c32552/f1p0/3032 | G12: =VLOOKUP(F12,[1]YLvsGL.Differential_analysis_re!$A:$G,4,0) -> 1.0244 | H12: =VLOOKUP(F12,[1]YLvsGL.Differential_analysis_re!$A:$G,5,0) -> 2.2025e-09
F13: i1_LQ_AR_c37412/f1p0/1609 | G13: =VLOOKUP(F13,[1]YLvsGL.Differential_analysis_re!$A:$G,4,0) -> 1.9934 | H13: =VLOOKUP(F13,[1]YLvsGL.Differential_analysis_re!$A:$G,5,0) -> 2.0391e-37
F14: i1_LQ_AR_c25064/f1p0/1638 | G14: =VLOOKUP(F14,[1]YLvsGL.Differential_analysis_re!$A:$G,4,0) -> 6.3697 | H14: =VLOOKUP(F14,[1]YLvsGL.Differential_analysis_re!$A:$G,5,0) -> 7.6501e-10
F15: i1_HQ_AR_c2447/f5p3/1840 | G15: =VLOOKUP(F15,[1]YLvsGL.Differential_analysis_re!$A:$G,4,0) -> 2.0994 | H15: =VLOOKUP(F15,[1]YLvsGL.Differential_analysis_re!$A:$G,5,0) -> 1.2854e-53
F16: i4_LQ_AR_c4099/f1p6/4189 | G16: =VLOOKUP(F16,[1]YLvsGL.Differential_analysis_re!$A:$G,4,0) -> -2.4728 | H16: =VLOOKUP(F16,[1]YLvsGL.Differential_analysis_re!$A:$G,5,0) -> 7.5051e-11
F17: i1_LQ_AR_c5180/f1p3/1917 | G17: =VLOOKUP(F17,[1]YLvsGL.Differential_analysis_re!$A:$G,4,0) -> 2.3198 | H17: =VLOOKUP(F17,[1]YLvsGL.Differential_analysis_re!$A:$G,5,0) -> 3.9983e-46
F18: i1_LQ_AR_c23949/f1p0/1605 | G18: =VLOOKUP(F18,[1]YLvsGL.Differential_analysis_re!$A:$G,4,0) -> 1.7671 | H18: =VLOOKUP(F18,[1]YLvsGL.Differential_analysis_re!$A:$G,5,0) -> 0.0010698
F19: i4_HQ_AR_c17971/f7p0/4197 | G19: =VLOOKUP(F19,[1]YLvsGL.Differential_analysis_re!$A:$G,4,0) -> -3.3175 | H19: =VLOOKUP(F19,[1]YLvsGL.Differential_analysis_re!$A:$G,5,0) -> 1.7743e-66
F20: i3_LQ_AR_c22805/f1p1/3281 | G20: =VLOOKUP(F20,[1]YLvsGL.Differential_analysis_re!$A:$G,4,0) -> 1.5161 | H20: =VLOOKUP(F20,[1]YLvsGL.Differential_analysis_re!$A:$G,5,0) -> 0.0053036
F21: i2_LQ_AR_c17032/f1p0/2044 | G21: =VLOOKUP(F21,[1]YLvsGL.Differential_analysis_re!$A:$G,4,0) -> -2.5692 | H21: =VLOOKUP(F21,[1]YLvsGL.Differential_analysis_re!$A:$G,5,0) -> 2.2392e-76
F22: i1_LQ_AR_c22162/f1p0/1801 | G22: =VLOOKUP(F22,[1]YLvsGL.Differential_analysis_re!$A:$G,4,0) -> -2.5042 | H22: =VLOOKUP(F22,[1]YLvsGL.Differential_analysis_re!$A:$G,5,0) -> 2.8164e-26
F23: i1_LQ_AR_c7634/f1p0/1430 | G23: =VLOOKUP(F23,[1]YLvsGL.Differential_analysis_re!$A:$G,4,0) -> 0.56051 | H23: =VLOOKUP(F23,[1]YLvsGL.Differential_analysis_re!$A:$G,5,0) -> 0.014957
F24: i4_LQ_AR_c24962/f1p0/4212 | G24: =VLOOKUP(F24,[1]YLvsGL.Differential_analysis_re!$A:$G,4,0) -> -0.88482 | H24: =VLOOKUP(F24,[1]YLvsGL.Differential_analysis_re!$A:$G,5,0) -> 1.2294e-06
F25: i2_LQ_AR_c10922/f1p2/2312 | G25: =VLOOKUP(F25,[1]YLvsGL.Differential_analysis_re!$A:$G,4,0) -> 0.62909 | H25: =VLOOKUP(F25,[1]YLvsGL.Differential_analysis_re!$A:$G,5,0) -> 1.588e-06
F26: i1_LQ_AR_c36220/f1p1/1199 | G26: =VLOOKUP(F26,[1]YLvsGL.Differential_analysis_re!$A:$G,4,0) -> -1.7454 | H26: =VLOOKUP(F26,[1]YLvsGL.Differential_analysis_re!$A:$G,5,0) -> 2.0615e-09
F27: i2_LQ_AR_c10660/f1p1/2129 | G27: =VLOOKUP(F27,[1]YLvsGL.Differential_analysis_re!$A:$G,4,0) -> -0.43789 | H27: =VLOOKUP(F27,[1]YLvsGL.Differential_analysis_re!$A:$G,5,0) -> 0.0027381
F28: i4_LQ_AR_c4162/f1p0/4075 | G28: =VLOOKUP(F28,[1]YLvsGL.Differential_analysis_re!$A:$G,4,0) -> -2.3476 | H28: =VLOOKUP(F28,[1]YLvsGL.Differential_analysis_re!$A:$G,5,0) -> 4.6235e-07
F29: i1_LQ_AR_c41438/f1p0/1340 | G29: =VLOOKUP(F29,[1]YLvsGL.Differential_analysis_re!$A:$G,4,0) -> -2.6195 | H29: =VLOOKUP(F29,[1]YLvsGL.Differential_analysis_re!$A:$G,5,0) -> 2.9043e-21
F30: i4_LQ_AR_c12060/f1p2/4817 | G30: =VLOOKUP(F30,[1]YLvsGL.Differential_analysis_re!$A:$G,4,0) -> -3.0532 | H30: =VLOOKUP(F30,[1]YLvsGL.Differential_analysis_re!$A:$G,5,0) -> 1.1506e-05
F31: i1_LQ_AR_c40268/f1p5/1776 | G31: =VLOOKUP(F31,[1]YLvsGL.Differential_analysis_re!$A:$G,4,0) -> 1.1243 | H31: =VLOOKUP(F31,[1]YLvsGL.Differential_analysis_re!$A:$G,5,0) -> 3.5342e-19
F32: i1_HQ_AR_c33538/f2p0/1890 | G32: =VLOOKUP(F32,[1]YLvsGL.Differential_analysis_re!$A:$G,4,0) -> -2.007 | H32: =VLOOKUP(F32,[1]YLvsGL.Differential_analysis_re!$A:$G,5,0) -> 6.7408e-20
F33: i1_LQ_AR_c10172/f1p0/1591 | G33: =VLOOKUP(F33,[1]YLvsGL.Differential_analysis_re!$A:$G,4,0) -> -0.32455 | H33: =VLOOKUP(F33,[1]YLvsGL.Differential_analysis_re!$A:$G,5,0) -> 0.010733
F34: i2_LQ_AR_c30886/f1p0/2019 | G34: =VLOOKUP(F34,[1]YLvsGL.Differential_analysis_re!$A:$G,4,0) -> 1.3459 | H34: =VLOOKUP(F34,[1]YLvsGL.Differential_analysis_re!$A:$G,5,0) -> 4.2536e-23
F35: i5_LQ_AR_c3715/f1p2/5204 | G35: =VLOOKUP(F35,[1]YLvsGL.Differential_analysis_re!$A:$G,4,0) -> -1.1982 | H35: =VLOOKUP(F35,[1]YLvsGL.Differential_analysis_re!$A:$G,5,0) -> 2.6952e-14
F36: i0_LQ_AR_c12948/f1p0/973 | G36: =VLOOKUP(F36,[1]YLvsGL.Differential_analysis_re!$A:$G,4,0) -> -0.57565 | H36: =VLOOKUP(F36,[1]YLvsGL.Differential_analysis_re!$A:$G,5,0) -> 0.00010511
F37: i3_LQ_AR_c2116/f1p0/3235 | G37: =VLOOKUP(F37,[1]YLvsGL.Differential_analysis_re!$A:$G,4,0) -> -0.88271 | H37: =VLOOKUP(F37,[1]YLvsGL.Differential_analysis_re!$A:$G,5,0) -> 0.0036194
F38: i1_HQ_AR_c17967/f4p4/1776 | G38: =VLOOKUP(F38,[1]YLvsGL.Differential_analysis_re!$A:$G,4,0) -> -1.1031 | H38: =VLOOKUP(F38,[1]YLvsGL.Differential_analysis_re!$A:$G,5,0) -> 8.5397e-18
F39: i2_LQ_AR_c14031/f1p0/2826 | G39: =VLOOKUP(F39,[1]YLvsGL.Differential_analysis_re!$A:$G,4,0) -> 4.3516 | H39: =VLOOKUP(F39,[1]YLvsGL.Differential_analysis_re!$A:$G,5,0) -> 3.4881e-07
F40: i1_LQ_AR_c36743/f1p1/1725 | G40: =VLOOKUP(F40,[1]YLvsGL.Differential_analysis_re!$A:$G,4,0) -> 3.2516 | H40: =VLOOKUP(F40,[1]YLvsGL.Differential_analysis_re!$A:$G,5,0) -> 9.5484e-29
F41: i4_LQ_AR_c24737/f1p3/4821 | G41: =VLOOKUP(F41,[1]YLvsGL.Differential_analysis_re!$A:$G,4,0) -> -1.8314 | H41: =VLOOKUP(F41,[1]YLvsGL.Differential_analysis_re!$A:$G,5,0) -> 1.2728e-06
F42: i2_LQ_AR_c9632/f1p4/2649 | G42: =VLOOKUP(F42,[1]YLvsGL.Differential_analysis_re!$A:$G,4,0) -> 0.5353 | H42: =VLOOKUP(F42,[1]YLvsGL.Differential_analysis_re!$A:$G,5,0) -> 0.00055131
F43: i1_LQ_AR_c37513/f1p0/1996 | G43: =VLOOKUP(F43,[1]YLvsGL.Differential_analysis_re!$A:$G,4,0) -> -2.2616 | H43: =VLOOKUP(F43,[1]YLvsGL.Differential_analysis_re!$A:$G,5,0) -> 9.047e-20
F44: i2_LQ_AR_c10617/f1p12/2279 | G44: =VLOOKUP(F44,[1]YLvsGL.Differential_analysis_re!$A:$G,4,0) -> 2.302 | H44: =VLOOKUP(F44,[1]YLvsGL.Differential_analysis_re!$A:$G,5,0) -> 0.00053528
F45: i1_LQ_AR_c27617/f1p2/1465 | G45: =VLOOKUP(F45,[1]YLvsGL.Differential_analysis_re!$A:$G,4,0) -> -0.72068 | H45: =VLOOKUP(F45,[1]YLvsGL.Differential_analysis_re!$A:$G,5,0) -> 8.8113e-08
F46: i1_HQ_AR_c11800/f3p0/1816 | G46: =VLOOKUP(F46,[1]YLvsGL.Differential_analysis_re!$A:$G,4,0) -> 1.8368 | H46: =VLOOKUP(F46,[1]YLvsGL.Differential_analysis_re!$A:$G,5,0) -> 1.0377e-29
F47: i2_LQ_AR_c5352/f1p0/2406 | G47: =VLOOKUP(F47,[1]YLvsGL.Differential_analysis_re!$A:$G,4,0) -> -1.1727 | H47: =VLOOKUP(F47,[1]YLvsGL.Differential_analysis_re!$A:$G,5,0) -> 0.0065736
F48: i1_LQ_AR_c38270/f1p1/1875 | G48: =VLOOKUP(F48,[1]YLvsGL.Differential_analysis_re!$A:$G,4,0) -> -0.51651 | H48: =VLOOKUP(F48,[1]YLvsGL.Differential_analysis_re!$A:$G,5,0) -> 9.5324e-05
F49: i1_LQ_AR_c22573/f1p1/1817 | G49: =VLOOKUP(F49,[1]YLvsGL.Differential_analysis_re!$A:$G,4,0) -> -4.4848 | H49: =VLOOKUP(F49,[1]YLvsGL.Differential_analysis_re!$A:$G,5,0) -> 2.8821e-141
F50: i7_LQ_AR_c724/f1p0/7280 | G50: =VLOOKUP(F50,[1]YLvsGL.Differential_analysis_re!$A:$G,4,0) -> -0.84902 | H50: =VLOOKUP(F50,[1]YLvsGL.Differential_analysis_re!$A:$G,5,0) -> 5.5875e-05
F51: i1_LQ_AR_c22844/f1p5/1807 | G51: =VLOOKUP(F51,[1]YLvsGL.Differential_analysis_re!$A:$G,4,0) -> 3.1157 | H51: =VLOOKUP(F51,[1]YLvsGL.Differential_analysis_re!$A:$G,5,0) -> 2.933e-58
F52: i1_LQ_AR_c43037/f1p3/1926 | G52: =VLOOKUP(F52,[1]YLvsGL.Differential_analysis_re!$A:$G,4,0) -> 0.93519 | H52: =VLOOKUP(F52,[1]YLvsGL.Differential_analysis_re!$A:$G,5,0) -> 6.7376e-10
F53: i1_HQ_AR_c10717/f3p0/1849 | G53: =VLOOKUP(F53,[1]YLvsGL.Differential_analysis_re!$A:$G,4,0) -> 0.71151 | H53: =VLOOKUP(F53,[1]YLvsGL.Differential_analysis_re!$A:$G,5,0) -> 0.00044692
F54: i1_LQ_AR_c27686/f1p3/1835 | G54: =VLOOKUP(F54,[1]YLvsGL.Differential_analysis_re!$A:$G,4,0) -> 0.80994 | H54: =VLOOKUP(F54,[1]YLvsGL.Differential_analysis_re!$A:$G,5,0) -> 2.4469e-08
F55: i4_LQ_AR_c2662/f1p0/4187 | G55: =VLOOKUP(F55,[1]YLvsGL.Differential_analysis_re!$A:$G,4,0) -> 1.4565 | H55: =VLOOKUP(F55,[1]YLvsGL.Differential_analysis_re!$A:$G,5,0) -> 0.0014769
F56: i1_HQ_AR_c6296/f3p0/1608 | G56: =VLOOKUP(F56,[1]YLvsGL.Differential_analysis_re!$A:$G,4,0) -> 1.1322 | H56: =VLOOKUP(F56,[1]YLvsGL.Differential_analysis_re!$A:$G,5,0) -> 1.0069e-12
F57: i1_HQ_AR_c6563/f3p1/1521 | G57: =VLOOKUP(F57,[1]YLvsGL.Differential_analysis_re!$A:$G,4,0) -> -2.2057 | H57: =VLOOKUP(F57,[1]YLvsGL.Differential_analysis_re!$A:$G,5,0) -> 4.3428e-16
F58: i1_HQ_AR_c569/f20p5/1623 | G58: =VLOOKUP(F58,[1]YLvsGL.Differential_analysis_re!$A:$G,4,0) -> 0.92497 | H58: =VLOOKUP(F58,[1]YLvsGL.Differential_analysis_re!$A:$G,5,0) -> 5.3971e-13
F59: i1_LQ_AR_c7117/f1p4/1047 | G59: =VLOOKUP(F59,[1]YLvsGL.Differential_analysis_re!$A:$G,4,0) -> 2.8995 | H59: =VLOOKUP(F59,[1]YLvsGL.Differential_analysis_re!$A:$G,5,0) -> 1.8636e-08
F60: i1_LQ_AR_c35255/f1p0/1358 | G60: =VLOOKUP(F60,[1]YLvsGL.Differential_analysis_re!$A:$G,4,0) -> 2.8285 | H60: =VLOOKUP(F60,[1]YLvsGL.Differential_analysis_re!$A:$G,5,0) -> 8.9913e-41
F61: i1_LQ_AR_c45861/f1p1/1811 | G61: =VLOOKUP(F61,[1]YLvsGL.Differential_analysis_re!$A:$G,4,0) -> -4.1761 | H61: =VLOOKUP(F61,[1]YLvsGL.Differential_analysis_re!$A:$G,5,0) -> 7.5031e-85
F62: i2_LQ_AR_c28221/f1p3/2116 | G62: =VLOOKUP(F62,[1]YLvsGL.Differential_analysis_re!$A:$G,4,0) -> 2.8049 | H62: =VLOOKUP(F62,[1]YLvsGL.Differential_analysis_re!$A:$G,5,0) -> 3.0543e-73
F63: i1_LQ_AR_c41501/f1p2/1851 | G63: =VLOOKUP(F63,[1]YLvsGL.Differential_analysis_re!$A:$G,4,0) -> -2.4046 | H63: =VLOOKUP(F63,[1]YLvsGL.Differential_analysis_re!$A:$G,5,0) -> 1.2036e-41
F64: i1_HQ_AR_c2263/f5p4/1756 | G64: =VLOOKUP(F64,[1]YLvsGL.Differential_analysis_re!$A:$G,4,0) -> -1.1695 | H64: =VLOOKUP(F64,[1]YLvsGL.Differential_analysis_re!$A:$G,5,0) -> 8.5271e-20
F65: i2_HQ_AR_c1303/f4p0/2833 | G65: =VLOOKUP(F65,[1]YLvsGL.Differential_analysis_re!$A:$G,4,0) -> 2.998 | H65: =VLOOKUP(F65,[1]YLvsGL.Differential_analysis_re!$A:$G,5,0) -> 9.5786e-35
F66: i2_LQ_AR_c18962/f1p4/2655 | G66: =VLOOKUP(F66,[1]YLvsGL.Differential_analysis_re!$A:$G,4,0) -> 0.6748 | H66: =VLOOKUP(F66,[1]YLvsGL.Differential_analysis_re!$A:$G,5,0) -> 6.7533e-05
F67: i1_LQ_AR_c30792/f1p3/1051 | G67: =VLOOKUP(F67,[1]YLvsGL.Differential_analysis_re!$A:$G,4,0) -> 1.0639 | H67: =VLOOKUP(F67,[1]YLvsGL.Differential_analysis_re!$A:$G,5,0) -> 2.1063e-08
F68: i7_LQ_AR_c1133/f1p0/7269 | G68: =VLOOKUP(F68,[1]YLvsGL.Differential_analysis_re!$A:$G,4,0) -> -1.75 | H68: =VLOOKUP(F68,[1]YLvsGL.Differential_analysis_re!$A:$G,5,0) -> 0.021162
F69: i1_LQ_AR_c26135/f1p4/1960 | G69: =VLOOKUP(F69,[1]YLvsGL.Differential_analysis_re!$A:$G,4,0) -> 0.91102 | H69: =VLOOKUP(F69,[1]YLvsGL.Differential_analysis_re!$A:$G,5,0) -> 2.66e-07
F70: i3_LQ_AR_c26511/f1p4/3411 | G70: =VLOOKUP(F70,[1]YLvsGL.Differential_analysis_re!$A:$G,4,0) -> 2.9123 | H70: =VLOOKUP(F70,[1]YLvsGL.Differential_analysis_re!$A:$G,5,0) -> 1.6506e-10
F71: i1_LQ_AR_c37577/f1p4/1682 | G71: =VLOOKUP(F71,[1]YLvsGL.Differential_analysis_re!$A:$G,4,0) -> 1.1458 | H71: =VLOOKUP(F71,[1]YLvsGL.Differential_analysis_re!$A:$G,5,0) -> 7.3989e-13
F72: i1_LQ_AR_c8145/f1p3/1480 | G72: =VLOOKUP(F72,[1]YLvsGL.Differential_analysis_re!$A:$G,4,0) -> -0.9337 | H72: =VLOOKUP(F72,[1]YLvsGL.Differential_analysis_re!$A:$G,5,0) -> 5.5619e-05
F73: i2_LQ_AR_c24354/f1p0/2886 | G73: =VLOOKUP(F73,[1]YLvsGL.Differential_analysis_re!$A:$G,4,0) -> 3.4191 | H73: =VLOOKUP(F73,[1]YLvsGL.Differential_analysis_re!$A:$G,5,0) -> 3.5806e-37
F74: i2_LQ_AR_c14916/f1p3/2204 | G74: =VLOOKUP(F74,[1]YLvsGL.Differential_analysis_re!$A:$G,4,0) -> 3.3392 | H74: =VLOOKUP(F74,[1]YLvsGL.Differential_analysis_re!$A:$G,5,0) -> 2.2111e-12
F75: i2_LQ_AR_c27918/f1p6/2066 | G75: =VLOOKUP(F75,[1]YLvsGL.Differential_analysis_re!$A:$G,4,0) -> -0.5614 | H75: =VLOOKUP(F75,[1]YLvsGL.Differential_analysis_re!$A:$G,5,0) -> 0.0013454
F76: i1_LQ_AR_c8544/f1p1/1924 | G76: =VLOOKUP(F76,[1]YLvsGL.Differential_analysis_re!$A:$G,4,0) -> -1.7082 | H76: =VLOOKUP(F76,[1]YLvsGL.Differential_analysis_re!$A:$G,5,0) -> 8.1287e-31
F77: i1_LQ_AR_c24583/f1p0/1625 | G77: =VLOOKUP(F77,[1]YLvsGL.Differential_analysis_re!$A:$G,4,0) -> Inf | H77: =VLOOKUP(F77,[1]YLvsGL.Differential_analysis_re!$A:$G,5,0) -> 6.7245e-11
F78: i1_HQ_AR_c10420/f3p3/1281 | G78: =VLOOKUP(F78,[1]YLvsGL.Differential_analysis_re!$A:$G,4,0) -> -0.52663 | H78: =VLOOKUP(F78,[1]YLvsGL.Differential_analysis_re!$A:$G,5,0) -> 0.0009678
F79: i1_LQ_AR_c29601/f1p5/1099 | G79: =VLOOKUP(F79,[1]YLvsGL.Differential_analysis_re!$A:$G,4,0) -> 1.2672 | H79: =VLOOKUP(F79,[1]YLvsGL.Differential_analysis_re!$A:$G,5,0) -> 1.1999e-08
F80: i1_LQ_AR_c2591/f1p2/1999 | G80: =VLOOKUP(F80,[1]YLvsGL.Differential_analysis_re!$A:$G,4,0) -> 0.87415 | H80: =VLOOKUP(F80,[1]YLvsGL.Differential_analysis_re!$A:$G,5,0) -> 1.3301e-07
F81: i7_LQ_AR_c848/f1p0/7580 | G81: =VLOOKUP(F81,[1]YLvsGL.Differential_analysis_re!$A:$G,4,0) -> -0.94734 | H81: =VLOOKUP(F81,[1]YLvsGL.Differential_analysis_re!$A:$G,5,0) -> 0.00041962
F82: i1_LQ_AR_c18309/f1p0/1931 | G82: =VLOOKUP(F82,[1]YLvsGL.Differential_analysis_re!$A:$G,4,0) -> 1.185 | H82: =VLOOKUP(F82,[1]YLvsGL.Differential_analysis_re!$A:$G,5,0) -> 3.3054e-08
F83: i6_LQ_AR_c2704/f1p1/6924 | G83: =VLOOKUP(F83,[1]YLvsGL.Differential_analysis_re!$A:$G,4,0) -> 1.8374 | H83: =VLOOKUP(F83,[1]YLvsGL.Differential_analysis_re!$A:$G,5,0) -> 2.1725e-05
F84: i1_LQ_AR_c27797/f1p0/1562 | G84: =VLOOKUP(F84,[1]YLvsGL.Differential_analysis_re!$A:$G,4,0) -> -0.492 | H84: =VLOOKUP(F84,[1]YLvsGL.Differential_analysis_re!$A:$G,5,0) -> 0.015845
F85: i1_HQ_AR_c2001/f4p1/1767 | G85: =VLOOKUP(F85,[1]YLvsGL.Differential_analysis_re!$A:$G,4,0) -> -2.828 | H85: =VLOOKUP(F85,[1]YLvsGL.Differential_analysis_re!$A:$G,5,0) -> 1.4288e-71
F86: i2_LQ_AR_c16614/f1p0/2205 | G86: =VLOOKUP(F86,[1]YLvsGL.Differential_analysis_re!$A:$G,4,0) -> 1.0762 | H86: =VLOOKUP(F86,[1]YLvsGL.Differential_analysis_re!$A:$G,5,0) -> 0.0032795
F87: i1_LQ_AR_c50941/f1p0/1294 | G87: =VLOOKUP(F87,[1]YLvsGL.Differential_analysis_re!$A:$G,4,0) -> 1.5224 | H87: =VLOOKUP(F87,[1]YLvsGL.Differential_analysis_re!$A:$G,5,0) -> 1.8033e-07
F88: i1_LQ_AR_c43796/f1p0/1726 | G88: =VLOOKUP(F88,[1]YLvsGL.Differential_analysis_re!$A:$G,4,0) -> 3.7827 | H88: =VLOOKUP(F88,[1]YLvsGL.Differential_analysis_re!$A:$G,5,0) -> 0.00042884
F89: i1_HQ_AR_c1803/f4p3/1961 | G89: =VLOOKUP(F89,[1]YLvsGL.Differential_analysis_re!$A:$G,4,0) -> 1.9499 | H89: =VLOOKUP(F89,[1]YLvsGL.Differential_analysis_re!$A:$G,5,0) -> 6.0622e-49
F90: i1_LQ_AR_c14416/f1p2/1438 | G90: =VLOOKUP(F90,[1]YLvsGL.Differential_analysis_re!$A:$G,4,0) -> 2.7205 | H90: =VLOOKUP(F90,[1]YLvsGL.Differential_analysis_re!$A:$G,5,0) -> 9.063e-15
F91: i7_LQ_AR_c241/f1p0/7390 | G91: =VLOOKUP(F91,[1]YLvsGL.Differential_analysis_re!$A:$G,4,0) -> -1.5618 | H91: =VLOOKUP(F91,[1]YLvsGL.Differential_analysis_re!$A:$G,5,0) -> 0.004814
F92: i2_LQ_AR_c10408/f1p0/2517 | G92: =VLOOKUP(F92,[1]YLvsGL.Differential_analysis_re!$A:$G,4,0) -> 1.3087 | H92: =VLOOKUP(F92,[1]YLvsGL.Differential_analysis_re!$A:$G,5,0) -> 8.2266e-13
F93: i2_LQ_AR_c10044/f1p2/2700 | G93: =VLOOKUP(F93,[1]YLvsGL.Differential_analysis_re!$A:$G,4,0) -> -1.7895 | H93: =VLOOKUP(F93,[1]YLvsGL.Differential_analysis_re!$A:$G,5,0) -> 0.0010303
F94: i5_LQ_AR_c5413/f1p0/5738 | G94: =VLOOKUP(F94,[1]YLvsGL.Differential_analysis_re!$A:$G,4,0) -> -0.86086 | H94: =VLOOKUP(F94,[1]YLvsGL.Differential_analysis_re!$A:$G,5,0) -> 8.2855e-06
F95: i1_HQ_AR_c4396/f2p2/1687 | G95: =VLOOKUP(F95,[1]YLvsGL.Differential_analysis_re!$A:$G,4,0) -> 1.4865 | H95: =VLOOKUP(F95,[1]YLvsGL.Differential_analysis_re!$A:$G,5,0) -> 1.9488e-28
F96: i1_LQ_AR_c50727/f1p0/1430 | G96: =VLOOKUP(F96,[1]YLvsGL.Differential_analysis_re!$A:$G,4,0) -> 2.6916 | H96: =VLOOKUP(F96,[1]YLvsGL.Differential_analysis_re!$A:$G,5,0) -> 6.371e-25
F97: i1_HQ_AR_c1249/f14p4/1511 | G97: =VLOOKUP(F97,[1]YLvsGL.Differential_analysis_re!$A:$G,4,0) -> -1.1855 | H97: =VLOOKUP(F97,[1]YLvsGL.Differential_analysis_re!$A:$G,5,0) -> 3.3574e-17
F98: i2_LQ_AR_c23696/f1p0/2733 | G98: =VLOOKUP(F98,[1]YLvsGL.Differential_analysis_re!$A:$G,4,0) -> 1.3126 | H98: =VLOOKUP(F98,[1]YLvsGL.Differential_analysis_re!$A:$G,5,0) -> 3.8776e-06
F99: i3_LQ_AR_c16456/f1p4/3075 | G99: =VLOOKUP(F99,[1]YLvsGL.Differential_analysis_re!$A:$G,4,0) -> 0.88782 | H99: =VLOOKUP(F99,[1]YLvsGL.Differential_analysis_re!$A:$G,5,0) -> 1.3926e-07
F100: i4_LQ_AR_c19206/f1p0/4305 | G100: =VLOOKUP(F100,[1]YLvsGL.Differential_analysis_re!$A:$G,4,0) -> -3.9967 | H100: =VLOOKUP(F100,[1]YLvsGL.Differential_analysis_re!$A:$G,5,0) -> 6.8803e-41
F101: i1_LQ_AR_c20380/f1p0/1828 | G101: =VLOOKUP(F101,[1]YLvsGL.Differential_analysis_re!$A:$G,4,0) -> 0.82021 | H101: =VLOOKUP(F101,[1]YLvsGL.Differential_analysis_re!$A:$G,5,0) -> 0.017931
F102: i1_LQ_AR_c41922/f1p0/1786 | G102: =VLOOKUP(F102,[1]YLvsGL.Differential_analysis_re!$A:$G,4,0) -> -1.901 | H102: =VLOOKUP(F102,[1]YLvsGL.Differential_analysis_re!$A:$G,5,0) -> 1.2457e-37
F103: i1_HQ_AR_c1168/f10p2/1723 | G103: =VLOOKUP(F103,[1]YLvsGL.Differential_analysis_re!$A:$G,4,0) -> -1.2307 | H103: =VLOOKUP(F103,[1]YLvsGL.Differential_analysis_re!$A:$G,5,0) -> 5.4304e-20
F104: i3_LQ_AR_c13273/f1p0/3555 | G104: =VLOOKUP(F104,[1]YLvsGL.Differential_analysis_re!$A:$G,4,0) -> -0.53839 | H104: =VLOOKUP(F104,[1]YLvsGL.Differential_analysis_re!$A:$G,5,0) -> 1.5653e-05
F105: i1_LQ_AR_c11368/f1p0/1737 | G105: =VLOOKUP(F105,[1]YLvsGL.Differential_analysis_re!$A:$G,4,0) -> -2.3859 | H105: =VLOOKUP(F105,[1]YLvsGL.Differential_analysis_re!$A:$G,5,0) -> 5.7356e-36
F106: i2_HQ_AR_c29365/f12p0/2031 | G106: =VLOOKUP(F106,[1]YLvsGL.Differential_analysis_re!$A:$G,4,0) -> 3.0837 | H106: =VLOOKUP(F106,[1]YLvsGL.Differential_analysis_re!$A:$G,5,0) -> 8.9601e-31
F107: i2_LQ_AR_c28496/f1p0/2074 | G107: =VLOOKUP(F107,[1]YLvsGL.Differential_analysis_re!$A:$G,4,0) -> -0.58862 | H107: =VLOOKUP(F107,[1]YLvsGL.Differential_analysis_re!$A:$G,5,0) -> 0.0010871
F108: i1_HQ_AR_c10009/f2p0/1930 | G108: =VLOOKUP(F108,[1]YLvsGL.Differential_analysis_re!$A:$G,4,0) -> 0.578 | H108: =VLOOKUP(F108,[1]YLvsGL.Differential_analysis_re!$A:$G,5,0) -> 5.8559e-05
F109: i1_LQ_AR_c23919/f1p2/1883 | G109: =VLOOKUP(F109,[1]YLvsGL.Differential_analysis_re!$A:$G,4,0) -> 1.3767 | H109: =VLOOKUP(F109,[1]YLvsGL.Differential_analysis_re!$A:$G,5,0) -> 3.1261e-06
F110: i2_LQ_AR_c24350/f1p3/2632 | G110: =VLOOKUP(F110,[1]YLvsGL.Differential_analysis_re!$A:$G,4,0) -> 1.2695 | H110: =VLOOKUP(F110,[1]YLvsGL.Differential_analysis_re!$A:$G,5,0) -> 1.7577e-13
F111: i7_HQ_AR_c1629/f6p2/7624 | G111: =VLOOKUP(F111,[1]YLvsGL.Differential_analysis_re!$A:$G,4,0) -> -0.71682 | H111: =VLOOKUP(F111,[1]YLvsGL.Differential_analysis_re!$A:$G,5,0) -> 9.4156e-08
F112: i1_LQ_AR_c19195/f1p5/1694 | G112: =VLOOKUP(F112,[1]YLvsGL.Differential_analysis_re!$A:$G,4,0) -> 1.1654 | H112: =VLOOKUP(F112,[1]YLvsGL.Differential_analysis_re!$A:$G,5,0) -> 1.0735e-19
F113: i2_LQ_AR_c8633/f1p0/2559 | G113: =VLOOKUP(F113,[1]YLvsGL.Differential_analysis_re!$A:$G,4,0) -> -1.6937 | H113: =VLOOKUP(F113,[1]YLvsGL.Differential_analysis_re!$A:$G,5,0) -> 6.7787e-06
F114: i2_LQ_AR_c18580/f1p0/2631 | G114: =VLOOKUP(F114,[1]YLvsGL.Differential_analysis_re!$A:$G,4,0) -> 0.76836 | H114: =VLOOKUP(F114,[1]YLvsGL.Differential_analysis_re!$A:$G,5,0) -> 0.0002841
F115: i5_LQ_AR_c7473/f1p0/5995 | G115: =VLOOKUP(F115,[1]YLvsGL.Differential_analysis_re!$A:$G,4,0) -> -3.0925 | H115: =VLOOKUP(F115,[1]YLvsGL.Differential_analysis_re!$A:$G,5,0) -> 4.513e-24
F116: i4_LQ_AR_c25526/f1p3/4169 | G116: =VLOOKUP(F116,[1]YLvsGL.Differential_analysis_re!$A:$G,4,0) -> -3.0137 | H116: =VLOOKUP(F116,[1]YLvsGL.Differential_analysis_re!$A:$G,5,0) -> 1.6087e-47
F117: i1_LQ_AR_c26286/f1p2/1223 | G117: =VLOOKUP(F117,[1]YLvsGL.Differential_analysis_re!$A:$G,4,0) -> -2.517 | H117: =VLOOKUP(F117,[1]YLvsGL.Differential_analysis_re!$A:$G,5,0) -> 3.5431e-69
F118: i8_LQ_AR_c533/f1p0/8007 | G118: =VLOOKUP(F118,[1]YLvsGL.Differential_analysis_re!$A:$G,4,0) -> -1.4287 | H118: =VLOOKUP(F118,[1]YLvsGL.Differential_analysis_re!$A:$G,5,0) -> 0.0048055
F119: i1_LQ_AR_c2872/f1p0/1290 | G119: =VLOOKUP(F119,[1]YLvsGL.Differential_analysis_re!$A:$G,4,0) -> 0.95516 | H119: =VLOOKUP(F119,[1]YLvsGL.Differential_analysis_re!$A:$G,5,0) -> 0.00027194
F120: i1_LQ_AR_c42973/f1p0/1582 | G120: =VLOOKUP(F120,[1]YLvsGL.Differential_analysis_re!$A:$G,4,0) -> -2.6201 | H120: =VLOOKUP(F120,[1]YLvsGL.Differential_analysis_re!$A:$G,5,0) -> 1.5277e-52
F121: i1_LQ_AR_c12336/f1p3/1539 | G121: =VLOOKUP(F121,[1]YLvsGL.Differential_analysis_re!$A:$G,4,0) -> -1.0304 | H121: =VLOOKUP(F121,[1]YLvsGL.Differential_analysis_re!$A:$G,5,0) -> 6.5804e-05
F122: i2_LQ_AR_c3958/f1p0/2599 | G122: =VLOOKUP(F122,[1]YLvsGL.Differential_analysis_re!$A:$G,4,0) -> 0.68239 | H122: =VLOOKUP(F122,[1]YLvsGL.Differential_analysis_re!$A:$G,5,0) -> 1.7163e-05
F123: i1_HQ_AR_c47925/f6p1/1678 | G123: =VLOOKUP(F123,[1]YLvsGL.Differential_analysis_re!$A:$G,4,0) -> -0.54197 | H123: =VLOOKUP(F123,[1]YLvsGL.Differential_analysis_re!$A:$G,5,0) -> 1.5974e-05
F124: i1_LQ_AR_c35666/f1p3/1356 | G124: =VLOOKUP(F124,[1]YLvsGL.Differential_analysis_re!$A:$G,4,0) -> -0.5019 | H124: =VLOOKUP(F124,[1]YLvsGL.Differential_analysis_re!$A:$G,5,0) -> 0.00048833
F125: i3_LQ_AR_c34952/f1p0/3825 | G125: =VLOOKUP(F125,[1]YLvsGL.Differential_analysis_re!$A:$G,4,0) -> -3.7201 | H125: =VLOOKUP(F125,[1]YLvsGL.Differential_analysis_re!$A:$G,5,0) -> 5.2308e-30
F126: i1_LQ_AR_c20670/f1p3/1780 | G126: =VLOOKUP(F126,[1]YLvsGL.Differential_analysis_re!$A:$G,4,0) -> 1.2437 | H126: =VLOOKUP(F126,[1]YLvsGL.Differential_analysis_re!$A:$G,5,0) -> 1.5668e-13
F127: i1_LQ_AR_c26511/f1p4/1698 | G127: =VLOOKUP(F127,[1]YLvsGL.Differential_analysis_re!$A:$G,4,0) -> -0.946 | H127: =VLOOKUP(F127,[1]YLvsGL.Differential_analysis_re!$A:$G,5,0) -> 3.3295e-09
F128: i1_LQ_AR_c42056/f1p2/1803 | G128: =VLOOKUP(F128,[1]YLvsGL.Differential_analysis_re!$A:$G,4,0) -> -1.4568 | H128: =VLOOKUP(F128,[1]YLvsGL.Differential_analysis_re!$A:$G,5,0) -> 0.00057967
F129: i2_LQ_AR_c6879/f1p1/2591 | G129: =VLOOKUP(F129,[1]YLvsGL.Differential_analysis_re!$A:$G,4,0) -> -2.8723 | H129: =VLOOKUP(F129,[1]YLvsGL.Differential_analysis_re!$A:$G,5,0) -> 7.4722e-33
F130: i7_LQ_AR_c1433/f1p0/7444 | G130: =VLOOKUP(F130,[1]YLvsGL.Differential_analysis_re!$A:$G,4,0) -> -1.3488 | H130: =VLOOKUP(F130,[1]YLvsGL.Differential_analysis_re!$A:$G,5,0) -> 0.012228
B131: Arginine and proline metabolism | C131: 204 | D131: 149 | E131: 55 | F131: i5_LQ_AR_c8617/f1p140/5494 | G131: =VLOOKUP(F131,[1]YLvsGL.Differential_analysis_re!$A:$G,4,0) -> 1.7086 | H131: =VLOOKUP(F131,[1]YLvsGL.Differential_analysis_re!$A:$G,5,0) -> 5.0963e-06
F132: i3_LQ_AR_c6634/f1p0/4010 | G132: =VLOOKUP(F132,[1]YLvsGL.Differential_analysis_re!$A:$G,4,0) -> 0.62528 | H132: =VLOOKUP(F132,[1]YLvsGL.Differential_analysis_re!$A:$G,5,0) -> 0.018996
F133: i5_LQ_AR_c3468/f1p0/5838 | G133: =VLOOKUP(F133,[1]YLvsGL.Differential_analysis_re!$A:$G,4,0) -> 1.9931 | H133: =VLOOKUP(F133,[1]YLvsGL.Differential_analysis_re!$A:$G,5,0) -> 0.0030902
F134: i1_LQ_AR_c38190/f1p8/1659 | G134: =VLOOKUP(F134,[1]YLvsGL.Differential_analysis_re!$A:$G,4,0) -> 1.9709 | H134: =VLOOKUP(F134,[1]YLvsGL.Differential_analysis_re!$A:$G,5,0) -> 2.8057e-13
F135: i1_LQ_AR_c41718/f1p0/1591 | G135: =VLOOKUP(F135,[1]YLvsGL.Differential_analysis_re!$A:$G,4,0) -> 0.75046 | H135: =VLOOKUP(F135,[1]YLvsGL.Differential_analysis_re!$A:$G,5,0) -> 0.015758
F136: i2_HQ_AR_c1196/f7p0/2619 | G136: =VLOOKUP(F136,[1]YLvsGL.Differential_analysis_re!$A:$G,4,0) -> -1.0902 | H136: =VLOOKUP(F136,[1]YLvsGL.Differential_analysis_re!$A:$G,5,0) -> 1.2648e-08
F137: i4_LQ_AR_c21823/f1p5/4171 | G137: =VLOOKUP(F137,[1]YLvsGL.Differential_analysis_re!$A:$G,4,0) -> 0.95247 | H137: =VLOOKUP(F137,[1]YLvsGL.Differential_analysis_re!$A:$G,5,0) -> 0.004229
F138: i1_LQ_AR_c57413/f1p1/1020 | G138: =VLOOKUP(F138,[1]YLvsGL.Differential_analysis_re!$A:$G,4,0) -> -1.1127 | H138: =VLOOKUP(F138,[1]YLvsGL.Differential_analysis_re!$A:$G,5,0) -> 0.017425
F139: i1_HQ_AR_c1762/f4p4/1473 | G139: =VLOOKUP(F139,[1]YLvsGL.Differential_analysis_re!$A:$G,4,0) -> -0.98258 | H139: =VLOOKUP(F139,[1]YLvsGL.Differential_analysis_re!$A:$G,5,0) -> 4.6935e-09
F140: i3_LQ_AR_c14370/f1p0/3264 | G140: =VLOOKUP(F140,[1]YLvsGL.Differential_analysis_re!$A:$G,4,0) -> 1.766 | H140: =VLOOKUP(F140,[1]YLvsGL.Differential_analysis_re!$A:$G,5,0) -> 0.00021207
F141: i5_HQ_AR_c11591/f2p0/5086 | G141: =VLOOKUP(F141,[1]YLvsGL.Differential_analysis_re!$A:$G,4,0) -> Inf | H141: =VLOOKUP(F141,[1]YLvsGL.Differential_analysis_re!$A:$G,5,0) -> 0.020067
F142: i2_HQ_AR_c29218/f4p2/2162 | G142: =VLOOKUP(F142,[1]YLvsGL.Differential_analysis_re!$A:$G,4,0) -> -0.99028 | H142: =VLOOKUP(F142,[1]YLvsGL.Differential_analysis_re!$A:$G,5,0) -> 3.6365e-13
F143: i1_HQ_AR_c1710/f8p2/1842 | G143: =VLOOKUP(F143,[1]YLvsGL.Differential_analysis_re!$A:$G,4,0) -> 1.8975 | H143: =VLOOKUP(F143,[1]YLvsGL.Differential_analysis_re!$A:$G,5,0) -> 3.1118e-41
F144: i1_LQ_AR_c13620/f1p0/1483 | G144: =VLOOKUP(F144,[1]YLvsGL.Differential_analysis_re!$A:$G,4,0) -> -0.82433 | H144: =VLOOKUP(F144,[1]YLvsGL.Differential_analysis_re!$A:$G,5,0) -> 1.4842e-07
F145: i3_LQ_AR_c3551/f1p7/3777 | G145: =VLOOKUP(F145,[1]YLvsGL.Differential_analysis_re!$A:$G,4,0) -> 1.6091 | H145: =VLOOKUP(F145,[1]YLvsGL.Differential_analysis_re!$A:$G,5,0) -> 3.4585e-05
F146: i1_LQ_AR_c27453/f1p1/1162 | G146: =VLOOKUP(F146,[1]YLvsGL.Differential_analysis_re!$A:$G,4,0) -> -0.90217 | H146: =VLOOKUP(F146,[1]YLvsGL.Differential_analysis_re!$A:$G,5,0) -> 3.7913e-06
F147: i3_LQ_AR_c5186/f1p1/3701 | G147: =VLOOKUP(F147,[1]YLvsGL.Differential_analysis_re!$A:$G,4,0) -> 2.5024 | H147: =VLOOKUP(F147,[1]YLvsGL.Differential_analysis_re!$A:$G,5,0) -> 2.7176e-22
F148: i2_LQ_AR_c16937/f1p0/2040 | G148: =VLOOKUP(F148,[1]YLvsGL.Differential_analysis_re!$A:$G,4,0) -> 1.7321 | H148: =VLOOKUP(F148,[1]YLvsGL.Differential_analysis_re!$A:$G,5,0) -> 1.1179e-34
F149: i1_HQ_AR_c1417/f3p1/1545 | G149: =VLOOKUP(F149,[1]YLvsGL.Differential_analysis_re!$A:$G,4,0) -> 0.68649 | H149: =VLOOKUP(F149,[1]YLvsGL.Differential_analysis_re!$A:$G,5,0) -> 2.3988e-07
F150: i1_LQ_AR_c11466/f1p0/1568 | G150: =VLOOKUP(F150,[1]YLvsGL.Differential_analysis_re!$A:$G,4,0) -> -0.70833 | H150: =VLOOKUP(F150,[1]YLvsGL.Differential_analysis_re!$A:$G,5,0) -> 0.00068521
F151: i1_LQ_AR_c39643/f1p0/1823 | G151: =VLOOKUP(F151,[1]YLvsGL.Differential_analysis_re!$A:$G,4,0) -> -1.0252 | H151: =VLOOKUP(F151,[1]YLvsGL.Differential_analysis_re!$A:$G,5,0) -> 2.5737e-09
F152: i4_LQ_AR_c3018/f1p0/4990 | G152: =VLOOKUP(F152,[1]YLvsGL.Differential_analysis_re!$A:$G,4,0) -> 2.3701 | H152: =VLOOKUP(F152,[1]YLvsGL.Differential_analysis_re!$A:$G,5,0) -> 1.9654e-07
F153: i2_LQ_AR_c10524/f1p0/2406 | G153: =VLOOKUP(F153,[1]YLvsGL.Differential_analysis_re!$A:$G,4,0) -> 2.358 | H153: =VLOOKUP(F153,[1]YLvsGL.Differential_analysis_re!$A:$G,5,0) -> 1.259e-56
F154: i1_LQ_AR_c11587/f1p1/1794 | G154: =VLOOKUP(F154,[1]YLvsGL.Differential_analysis_re!$A:$G,4,0) -> 1.9798 | H154: =VLOOKUP(F154,[1]YLvsGL.Differential_analysis_re!$A:$G,5,0) -> 2.5564e-07
F155: i1_LQ_AR_c19095/f1p2/1450 | G155: =VLOOKUP(F155,[1]YLvsGL.Differential_analysis_re!$A:$G,4,0) -> -2.971 | H155: =VLOOKUP(F155,[1]YLvsGL.Differential_analysis_re!$A:$G,5,0) -> 1.2632e-27
F156: i3_LQ_AR_c20181/f1p7/3206 | G156: =VLOOKUP(F156,[1]YLvsGL.Differential_analysis_re!$A:$G,4,0) -> 1.7262 | H156: =VLOOKUP(F156,[1]YLvsGL.Differential_analysis_re!$A:$G,5,0) -> 1.7969e-40
F157: i1_HQ_AR_c1941/f4p0/1553 | G157: =VLOOKUP(F157,[1]YLvsGL.Differential_analysis_re!$A:$G,4,0) -> 0.61307 | H157: =VLOOKUP(F157,[1]YLvsGL.Differential_analysis_re!$A:$G,5,0) -> 9.9692e-07
F158: i4_HQ_AR_c27947/f2p0/4081 | G158: =VLOOKUP(F158,[1]YLvsGL.Differential_analysis_re!$A:$G,4,0) -> -2.0501 | H158: =VLOOKUP(F158,[1]YLvsGL.Differential_analysis_re!$A:$G,5,0) -> 3.9081e-07
F159: i1_LQ_AR_c37670/f1p1/1514 | G159: =VLOOKUP(F159,[1]YLvsGL.Differential_analysis_re!$A:$G,4,0) -> -0.69908 | H159: =VLOOKUP(F159,[1]YLvsGL.Differential_analysis_re!$A:$G,5,0) -> 3.5945e-05
F160: i1_LQ_AR_c37009/f1p11/1950 | G160: =VLOOKUP(F160,[1]YLvsGL.Differential_analysis_re!$A:$G,4,0) -> 1.8383 | H160: =VLOOKUP(F160,[1]YLvsGL.Differential_analysis_re!$A:$G,5,0) -> 3.7624e-39
F161: i1_LQ_AR_c37336/f1p5/1883 | G161: =VLOOKUP(F161,[1]YLvsGL.Differential_analysis_re!$A:$G,4,0) -> 1.6446 | H161: =VLOOKUP(F161,[1]YLvsGL.Differential_analysis_re!$A:$G,5,0) -> 4.7377e-19
F162: i5_LQ_AR_c1307/f1p8/5858 | G162: =VLOOKUP(F162,[1]YLvsGL.Differential_analysis_re!$A:$G,4,0) -> 1.4686 | H162: =VLOOKUP(F162,[1]YLvsGL.Differential_analysis_re!$A:$G,5,0) -> 5.655e-17
F163: i1_LQ_AR_c34319/f1p15/1810 | G163: =VLOOKUP(F163,[1]YLvsGL.Differential_analysis_re!$A:$G,4,0) -> 2.2355 | H163: =VLOOKUP(F163,[1]YLvsGL.Differential_analysis_re!$A:$G,5,0) -> 0.0027749
F164: i2_LQ_AR_c27890/f1p0/2027 | G164: =VLOOKUP(F164,[1]YLvsGL.Differential_analysis_re!$A:$G,4,0) -> 1.3356 | H164: =VLOOKUP(F164,[1]YLvsGL.Differential_analysis_re!$A:$G,5,0) -> 1.0912e-13
F165: i2_LQ_AR_c14791/f1p0/3007 | G165: =VLOOKUP(F165,[1]YLvsGL.Differential_analysis_re!$A:$G,4,0) -> 1.6448 | H165: =VLOOKUP(F165,[1]YLvsGL.Differential_analysis_re!$A:$G,5,0) -> 2.414e-24
F166: i6_LQ_AR_c1768/f1p0/6239 | G166: =VLOOKUP(F166,[1]YLvsGL.Differential_analysis_re!$A:$G,4,0) -> 1.2011 | H166: =VLOOKUP(F166,[1]YLvsGL.Differential_analysis_re!$A:$G,5,0) -> 0.004472
F167: i2_HQ_AR_c1942/f2p14/2952 | G167: =VLOOKUP(F167,[1]YLvsGL.Differential_analysis_re!$A:$G,4,0) -> 1.5833 | H167: =VLOOKUP(F167,[1]YLvsGL.Differential_analysis_re!$A:$G,5,0) -> 3.586e-31
F168: i3_LQ_AR_c25719/f1p0/3567 | G168: =VLOOKUP(F168,[1]YLvsGL.Differential_analysis_re!$A:$G,4,0) -> 2.9954 | H168: =VLOOKUP(F168,[1]YLvsGL.Differential_analysis_re!$A:$G,5,0) -> 1.7725e-06
F169: i2_LQ_AR_c23358/f1p0/2154 | G169: =VLOOKUP(F169,[1]YLvsGL.Differential_analysis_re!$A:$G,4,0) -> 1.8537 | H169: =VLOOKUP(F169,[1]YLvsGL.Differential_analysis_re!$A:$G,5,0) -> 5.7097e-10
F170: i2_LQ_AR_c18184/f2p1/2304 | G170: =VLOOKUP(F170,[1]YLvsGL.Differential_analysis_re!$A:$G,4,0) -> 2.1366 | H170: =VLOOKUP(F170,[1]YLvsGL.Differential_analysis_re!$A:$G,5,0) -> 1.1265e-40
F171: i1_LQ_AR_c18933/f1p0/1626 | G171: =VLOOKUP(F171,[1]YLvsGL.Differential_analysis_re!$A:$G,4,0) -> -1.2851 | H171: =VLOOKUP(F171,[1]YLvsGL.Differential_analysis_re!$A:$G,5,0) -> 9.0124e-08
F172: i2_LQ_AR_c16758/f1p0/2046 | G172: =VLOOKUP(F172,[1]YLvsGL.Differential_analysis_re!$A:$G,4,0) -> -2.9536 | H172: =VLOOKUP(F172,[1]YLvsGL.Differential_analysis_re!$A:$G,5,0) -> 1.2317e-09
F173: i3_LQ_AR_c32762/f1p0/3136 | G173: =VLOOKUP(F173,[1]YLvsGL.Differential_analysis_re!$A:$G,4,0) -> 2.7597 | H173: =VLOOKUP(F173,[1]YLvsGL.Differential_analysis_re!$A:$G,5,0) -> 1.688e-14
F174: i2_LQ_AR_c16837/f1p0/2042 | G174: =VLOOKUP(F174,[1]YLvsGL.Differential_analysis_re!$A:$G,4,0) -> -2.2208 | H174: =VLOOKUP(F174,[1]YLvsGL.Differential_analysis_re!$A:$G,5,0) -> 3.3098e-23
F175: i1_LQ_AR_c36220/f1p1/1199 | G175: =VLOOKUP(F175,[1]YLvsGL.Differential_analysis_re!$A:$G,4,0) -> -1.7454 | H175: =VLOOKUP(F175,[1]YLvsGL.Differential_analysis_re!$A:$G,5,0) -> 2.0615e-09
F176: i1_LQ_AR_c33912/f1p6/1842 | G176: =VLOOKUP(F176,[1]YLvsGL.Differential_analysis_re!$A:$G,4,0) -> 1.1215 | H176: =VLOOKUP(F176,[1]YLvsGL.Differential_analysis_re!$A:$G,5,0) -> 0.00067493
F177: i2_LQ_AR_c9103/f1p0/2951 | G177: =VLOOKUP(F177,[1]YLvsGL.Differential_analysis_re!$A:$G,4,0) -> 3.7949 | H177: =VLOOKUP(F177,[1]YLvsGL.Differential_analysis_re!$A:$G,5,0) -> 0.0036322
F178: i3_LQ_AR_c32929/f1p0/3021 | G178: =VLOOKUP(F178,[1]YLvsGL.Differential_analysis_re!$A:$G,4,0) -> -2.8798 | H178: =VLOOKUP(F178,[1]YLvsGL.Differential_analysis_re!$A:$G,5,0) -> 0.0002802
F179: i1_HQ_AR_c1483/f4p0/1478 | G179: =VLOOKUP(F179,[1]YLvsGL.Differential_analysis_re!$A:$G,4,0) -> -0.81149 | H179: =VLOOKUP(F179,[1]YLvsGL.Differential_analysis_re!$A:$G,5,0) -> 6.1656e-10
F180: i3_LQ_AR_c30214/f1p17/3478 | G180: =VLOOKUP(F180,[1]YLvsGL.Differential_analysis_re!$A:$G,4,0) -> 1.2521 | H180: =VLOOKUP(F180,[1]YLvsGL.Differential_analysis_re!$A:$G,5,0) -> 2.1773e-22
F181: i2_LQ_AR_c4653/f1p0/2154 | G181: =VLOOKUP(F181,[1]YLvsGL.Differential_analysis_re!$A:$G,4,0) -> 1.0157 | H181: =VLOOKUP(F181,[1]YLvsGL.Differential_analysis_re!$A:$G,5,0) -> 4.1016e-13
F182: i1_HQ_AR_c497/f20p4/1722 | G182: =VLOOKUP(F182,[1]YLvsGL.Differential_analysis_re!$A:$G,4,0) -> 0.89421 | H182: =VLOOKUP(F182,[1]YLvsGL.Differential_analysis_re!$A:$G,5,0) -> 1.6582e-12
F183: i1_LQ_AR_c7994/f1p2/2108 | G183: =VLOOKUP(F183,[1]YLvsGL.Differential_analysis_re!$A:$G,4,0) -> -2.0943 | H183: =VLOOKUP(F183,[1]YLvsGL.Differential_analysis_re!$A:$G,5,0) -> 6.0389e-35
F184: i4_LQ_AR_c6544/f1p1/4120 | G184: =VLOOKUP(F184,[1]YLvsGL.Differential_analysis_re!$A:$G,4,0) -> 1.2121 | H184: =VLOOKUP(F184,[1]YLvsGL.Differential_analysis_re!$A:$G,5,0) -> 3.8836e-13
F185: i2_LQ_AR_c25901/f1p0/2897 | G185: =VLOOKUP(F185,[1]YLvsGL.Differential_analysis_re!$A:$G,4,0) -> 2.7281 | H185: =VLOOKUP(F185,[1]YLvsGL.Differential_analysis_re!$A:$G,5,0) -> 8.4019e-61
F186: i1_LQ_AR_c7044/f1p0/1213 | G186: =VLOOKUP(F186,[1]YLvsGL.Differential_analysis_re!$A:$G,4,0) -> -1.9648 | H186: =VLOOKUP(F186,[1]YLvsGL.Differential_analysis_re!$A:$G,5,0) -> 5.1095e-28
F187: i1_LQ_AR_c35561/f1p15/1866 | G187: =VLOOKUP(F187,[1]YLvsGL.Differential_analysis_re!$A:$G,4,0) -> 1.5256 | H187: =VLOOKUP(F187,[1]YLvsGL.Differential_analysis_re!$A:$G,5,0) -> 7.4706e-23
F188: i2_LQ_AR_c18767/f1p0/2529 | G188: =VLOOKUP(F188,[1]YLvsGL.Differential_analysis_re!$A:$G,4,0) -> -4.7557 | H188: =VLOOKUP(F188,[1]YLvsGL.Differential_analysis_re!$A:$G,5,0) -> 4.4528e-20
F189: i2_LQ_AR_c11347/f1p4/2254 | G189: =VLOOKUP(F189,[1]YLvsGL.Differential_analysis_re!$A:$G,4,0) -> 1.7608 | H189: =VLOOKUP(F189,[1]YLvsGL.Differential_analysis_re!$A:$G,5,0) -> 5.3131e-10
F190: i1_HQ_AR_c30729/f5p0/1869 | G190: =VLOOKUP(F190,[1]YLvsGL.Differential_analysis_re!$A:$G,4,0) -> 2.073 | H190: =VLOOKUP(F190,[1]YLvsGL.Differential_analysis_re!$A:$G,5,0) -> 2.7861e-30
F191: i2_HQ_AR_c1118/f6p0/2331 | G191: =VLOOKUP(F191,[1]YLvsGL.Differential_analysis_re!$A:$G,4,0) -> 2.2906 | H191: =VLOOKUP(F191,[1]YLvsGL.Differential_analysis_re!$A:$G,5,0) -> 4.6682e-67
F192: i2_LQ_AR_c15886/f1p1/2099 | G192: =VLOOKUP(F192,[1]YLvsGL.Differential_analysis_re!$A:$G,4,0) -> 0.98817 | H192: =VLOOKUP(F192,[1]YLvsGL.Differential_analysis_re!$A:$G,5,0) -> 1.7645e-12
F193: i3_LQ_AR_c26248/f1p0/3125 | G193: =VLOOKUP(F193,[1]YLvsGL.Differential_analysis_re!$A:$G,4,0) -> 1.9868 | H193: =VLOOKUP(F193,[1]YLvsGL.Differential_analysis_re!$A:$G,5,0) -> 1.2849e-43
F194: i1_HQ_AR_c4703/f4p0/1402 | G194: =VLOOKUP(F194,[1]YLvsGL.Differential_analysis_re!$A:$G,4,0) -> 0.37656 | H194: =VLOOKUP(F194,[1]YLvsGL.Differential_analysis_re!$A:$G,5,0) -> 0.0073677
F195: i1_LQ_AR_c22656/f1p0/1680 | G195: =VLOOKUP(F195,[1]YLvsGL.Differential_analysis_re!$A:$G,4,0) -> 1.3809 | H195: =VLOOKUP(F195,[1]YLvsGL.Differential_analysis_re!$A:$G,5,0) -> 3.8843e-11
F196: i1_LQ_AR_c28064/f1p1/1511 | G196: =VLOOKUP(F196,[1]YLvsGL.Differential_analysis_re!$A:$G,4,0) -> 1.1515 | H196: =VLOOKUP(F196,[1]YLvsGL.Differential_analysis_re!$A:$G,5,0) -> 0.0016352
F197: i2_LQ_AR_c16858/f1p0/2269 | G197: =VLOOKUP(F197,[1]YLvsGL.Differential_analysis_re!$A:$G,4,0) -> 1.1969 | H197: =VLOOKUP(F197,[1]YLvsGL.Differential_analysis_re!$A:$G,5,0) -> 1.3505e-15
F198: i2_LQ_AR_c9343/f1p0/2659 | G198: =VLOOKUP(F198,[1]YLvsGL.Differential_analysis_re!$A:$G,4,0) -> -0.88101 | H198: =VLOOKUP(F198,[1]YLvsGL.Differential_analysis_re!$A:$G,5,0) -> 0.0064248
F199: i1_LQ_AR_c5845/f1p5/1797 | G199: =VLOOKUP(F199,[1]YLvsGL.Differential_analysis_re!$A:$G,4,0) -> 1.6366 | H199: =VLOOKUP(F199,[1]YLvsGL.Differential_analysis_re!$A:$G,5,0) -> 3.7037e-17
F200: i2_LQ_AR_c5906/f1p0/2140 | G200: =VLOOKUP(F200,[1]YLvsGL.Differential_analysis_re!$A:$G,4,0) -> 1.6232 | H200: =VLOOKUP(F200,[1]YLvsGL.Differential_analysis_re!$A:$G,5,0) -> 1.2736e-14
... 8197 more rows
